lending/lending_fUSD_20260102
["ID","MTS","AMOUNT","RATE_DAILY","PERIOD"]
[400314447,1767355867035,-151.4,0.000188,2]
[400314448,1767355867046,-151.4,0.000188,2]
[400314449,1767355867055,-151.4,0.000188,2]
[400314450,1767355867064,-151.4,0.000188,2]
[400314451,1767355867074,-151.4,0.000188,2]
[400314452,1767355867084,-151.4,0.000188,2]
[400314453,1767355867093,-151.4,0.000188,2]
[400314454,1767355867103,-151.4,0.000188,2]
[400314455,1767355867112,-151.4,0.000188,2]
[400314456,1767355867121,-151.4,0.000188,2]
[400314457,1767355867130,-151.4,0.000188,2]
[400314458,1767355867139,-151.4,0.000188,2]
[400314459,1767355867149,-151.4,0.000188,2]
[400314460,1767355867159,-151.4,0.000188,2]
[400314461,1767355867168,-151.4,0.000188,2]
[400314462,1767355867177,-151.4,0.000188,2]
[400314463,1767355867186,-151.4,0.000188,2]
[400314464,1767355867196,-151.4,0.000188,2]
[400314465,1767355867205,-151.4,0.000188,2]
[400314466,1767355867214,-151.4,0.000188,2]
[400314467,1767355867223,-151.4,0.000188,2]
[400314468,1767355867232,-151.4,0.000188,2]
[400314469,1767355867241,-151.4,0.000188,2]
[400314470,1767355867251,-151.4,0.000188,2]
[400314471,1767355867261,-151.4,0.000188,2]
[400314472,1767355867270,-151.4,0.000188,2]
[400314473,1767355867279,-151.4,0.000188,2]
[400314474,1767355867289,-151.4,0.000188,2]
[400314475,1767355867298,-151.4,0.000188,2]
[400314476,1767355867308,-151.4,0.000188,2]
[400314477,1767355867317,-151.4,0.000188,2]
[400314478,1767355867326,-151.4,0.000188,2]
[400314479,1767355867335,-151.4,0.000188,2]
[400314480,1767355867344,-151.4,0.000188,2]
[400314481,1767355867353,-151.4,0.000188,2]
[400314482,1767355867363,-151.4,0.000188,2]
[400314483,1767355867372,-439.6,0.00018822,2]
[400314484,1767355867381,-264.39,0.00018853,2]
[400314485,1767355867391,-150.0,0.00018853,2]
[400314486,1767355867400,-150.0,0.00018853,2]
[400314487,1767355867409,-165.81067044,0.000189,2]
[400314488,1767355867419,-236.5287786,0.00018913,2]
[400314489,1767355867429,-579.7598313,0.00018913,2]
[400314490,1767355867438,-2433.0,0.00018916,2]
[400314491,1767355867449,-565.0,0.00018916,2]
[400314492,1767355867458,-6544.0,0.00018916,2]
[400314493,1767355867467,-209.5539226,0.00018959,2]
[400314494,1767355867476,-300.0,0.00018999,2]
[400314495,1767355867489,-5155.79890678,0.00019,2]
[400314496,1767355867501,-5000.0,0.00019,2]
[400314497,1767355867515,-990.79640528,0.00019,2]
[400314498,1767355867529,-990.79640528,0.00019,2]
[400314499,1767355867540,-990.79640528,0.00019,2]
[400314500,1767355867551,-107651.08471544,0.00019,2]
[400314501,1767355867564,-107651.08471544,0.00019,2]
[400314502,1767355867577,-107651.08471544,0.00019,2]
[400314503,1767355867590,-107651.08471544,0.00019,2]
[400314504,1767355867603,-107651.08471544,0.00019,2]
[400314505,1767355867617,-300.0,0.00019,2]
[400314506,1767355867631,-3187.42523413,0.00019,2]
[400314507,1767355867644,-3187.42523413,0.00019,2]
[400314508,1767355867657,-3187.42523413,0.00019,2]
[400314509,1767355867668,-150.0,0.0001906,2]
[400314510,1767355867681,-613.0,0.0001906,2]
[400314511,1767355867694,-1403.0,0.0001906,2]
[400314512,1767355867707,-5022.18133341,0.00019132,2]
[400314513,1767355867719,-5000.0,0.00019132,2]
[400314514,1767355867732,-5000.0,0.00019132,2]
[400314515,1767355867744,-151.86245973,0.00019156,2]
[400314516,1767355867757,-359.76179104,0.00019166,2]
[400314517,1767355867773,-3000.0,0.00019178,2]
[400314518,1767355867785,-3000.0,0.00019178,7]
[400314519,1767355867797,-3000.0,0.00019178,12]
[400314520,1767355867810,-916.805558,0.00019178,17]
[400314521,1767355867822,-20085.87,0.00019178,2]
[400314522,1767355867835,-151.0,0.00019178,2]
[400314523,1767355867848,-151.0,0.00019178,2]
[400314524,1767355867859,-151.0,0.00019178,2]
[400314525,1767355867872,-151.0,0.00019178,2]
[400314526,1767355867884,-151.0,0.00019178,2]
[400314527,1767355867901,-151.0,0.00019178,2]
[400314528,1767355867913,-151.0,0.00019178,2]
[400314529,1767355867926,-151.0,0.00019178,2]
[400314530,1767355867939,-151.0,0.00019178,2]
[400314531,1767355867951,-151.0,0.00019178,2]
[400314532,1767355867961,-151.0,0.00019178,2]
[400314533,1767355867971,-150.0,0.00019178,2]
[400314534,1767355867982,-159.96945707,0.00019178,2]
[400314535,1767355867997,-150.0,0.00019178,2]
[400314536,1767355868013,-164.61,0.00019184,2]
[400314537,1767355868024,-164.61,0.00019184,2]
[400314538,1767355868034,-164.61,0.00019184,2]
[400314539,1767355868047,-715.952794,0.000192,2]
[400314540,1767355868058,-164.61,0.00019249,2]
[400314541,1767355868071,-154.38,0.00019306,2]
[400314542,1767355868084,-1000.0,0.00019438,2]
[400314543,1767355868096,-500.0,0.00019726,2]
[400314544,1767355868106,-500.0,0.00019726,2]
[400314545,1767355868118,-500.0,0.00019726,2]
[400314546,1767355868130,-500.0,0.00019726,2]
[400314547,1767355868143,-500.0,0.00019726,2]
[400314548,1767355868155,-500.0,0.00019726,2]
[400314549,1767355868166,-222.83076836,0.00019726,2]
[400314550,1767355868178,-900.0,0.00019726,2]
[400314551,1767355868189,-250.0,0.00019726,2]
[400314552,1767355868201,-250.0,0.00019726,2]
[400314553,1767355868214,-1021.8,0.00019787,2]
[400314554,1767355868225,-1048.88723385,0.00019796,2]
[400314555,1767355868237,-1098.06551003,0.00019796,2]
[400314556,1767355868248,-1010.36635922,0.00019796,2]
[400314557,1767355868259,-1124.14083391,0.00019796,2]
[400314558,1767355868271,-1031.00693917,0.00019796,2]
[400314559,1767355868283,-1147.65149142,0.00019796,2]
[400314560,1767355868294,-1013.82523172,0.00019796,2]
[400314561,1767355868305,-1010.59739485,0.00019796,2]
[400314562,1767355868317,-1130.98243595,0.00019796,2]
[400314563,1767355868328,-1101.19001025,0.00019796,2]
[400314564,1767355868340,-1082.48800226,0.00019796,2]
[400314565,1767355868352,-1036.76639695,0.00019796,2]
[400314566,1767355868364,-1111.35941558,0.00019796,2]
[400314567,1767355868375,-1006.23584006,0.00019796,2]
[400314568,1767355868387,-1027.29634345,0.00019796,2]
[400314569,1767355868398,-1075.79660393,0.00019796,2]
[400314570,1767355868410,-1127.03948731,0.00019796,2]
[400314571,1767355868421,-1112.12626167,0.00019796,2]
[400314572,1767355868432,-1009.64424597,0.00019796,2]
[400314573,1767355868443,-1118.55867798,0.00019796,2]
[400314574,1767355868454,-1093.41737839,0.00019796,2]
[400314575,1767355868465,-1081.38430764,0.00019796,2]
[400314576,1767355868477,-1094.66860878,0.00019796,2]
[400314577,1767355868492,-1078.4718656,0.00019796,2]
[400314578,1767355868503,-1073.65521268,0.00019796,2]
[400314579,1767355868521,-1009.87815619,0.00019796,2]
[400314580,1767355868532,-1072.80494177,0.00019796,2]
[400314581,1767355868544,-1095.46758424,0.00019796,2]
[400314582,1767355868556,-1126.17923782,0.00019796,2]
[400314583,1767355868567,-1145.12745448,0.00019796,2]
[400314584,1767355868579,-1120.47901281,0.00019796,2]
[400314585,1767355868591,-1026.27340743,0.00019796,2]
[400314586,1767355868603,-500.0,0.000198,3]
[400314587,1767355868615,-1000.0,0.00019834,2]
[400314588,1767355868626,-1000.0,0.00019836,2]
[400314589,1767355868639,-1000.0,0.00019844,2]
[400314590,1767355868651,-1000.0,0.00019869,2]
[400314591,1767355868663,-4910.08258521,0.000199,3]
[400314592,1767355868676,-152.47446537,0.00019911,2]
[400314593,1767355868687,-1000.0,0.00019912,2]
[400314594,1767355868698,-1000.0,0.0001992,2]
[400314595,1767355868711,-242.79677594,0.00019943,2]
[400314596,1767355868722,-300.0,0.00019949,2]
[400314597,1767355868735,-271692.53069317,0.0001995,15]
[400314598,1767355868745,-14337.31616891,0.0001995,15]
[400314599,1767355868757,-1000.0,0.00019955,2]
[400314600,1767355868770,-150.0,0.00019959,2]
[400314601,1767355868782,-480.84894786,0.00019962,2]
[400314602,1767355868794,-1000.0,0.00019967,2]
[400314603,1767355868804,-1000.0,0.00019975,2]
[400314604,1767355868816,-1000.0,0.00019979,2]
[400314605,1767355868826,-1000.0,0.0001999,2]
[400314606,1767355868838,-1000.0,0.00019994,2]
[400314607,1767355868849,-300.0,0.00019999,2]
[400314608,1767355868860,-1000.0,0.00019999,2]
[400314609,1767355868871,-1529.94149251,0.0002,2]
[400314610,1767355868882,-496.35994195,0.0002,10]
[400314611,1767355868895,-398.0,0.0002,2]
[400314612,1767355868905,-10892.94673284,0.0002,2]
[400314613,1767355868916,-25539.86159044,0.0002,2]
[400314614,1767355868926,-3088.33,0.0002,2]
[400314615,1767355868938,-3950.0,0.0002,2]
[400314616,1767355868949,-73828.5499114,0.0002,2]
[400314617,1767355868961,-7273.82781215,0.0002,2]
[400314618,1767355868972,-1291.65907533,0.0002,2]
[400314619,1767355868983,-1042.58478081,0.0002,2]
[400314620,1767355868994,-2857.11141107,0.0002,2]
[400314621,1767355869010,-12896.57587344,0.0002,2]
[400314622,1767355869021,-5000.0,0.0002,2]
[400314623,1767355869032,-4000.0,0.0002,2]
[400314624,1767355869043,-1462.7070386,0.0002,5]
[400314625,1767355869054,-295.0,0.0002,2]
[400314626,1767355869066,-5353.3978635,0.0002,2]
[400314627,1767355869078,-37267.36681425,0.0002,5]
[400314628,1767355869089,-121241.28433342,0.0002,3]
[400314629,1767355869100,-355.84181952,0.0002,20]
[400314630,1767355869111,-206.44,0.0002,2]
[400314631,1767355869123,-276.0,0.0002,3]
[400314632,1767355869134,-200.0,0.0002,2]
[400314633,1767355869146,-2000.0,0.0002,2]
[400314634,1767355869157,-187.19,0.0002,2]
[400314635,1767355869168,-200.0,0.0002,2]
[400314636,1767355869178,-164.91486976,0.0002,20]
[400314637,1767355869189,-1000.0,0.0002,7]
[400314638,1767355869200,-150.0,0.0002,2]
[400314639,1767355869210,-150.0,0.0002,2]
[400314640,1767355869222,-194.84702052,0.0002,2]
[400314641,1767355869233,-1000.0,0.00020004,2]
[400314642,1767355869244,-8720.0,0.0002001,2]
[400314643,1767355869255,-2000.0,0.0002001,2]
[400314644,1767355869269,-2000.0,0.0002002,2]
[400314645,1767355869280,-150.0,0.00020024,2]
[400314646,1767355869291,-1000.0,0.00020024,2]
[400314647,1767355869301,-1000.0,0.00020025,2]
[400314648,1767355869312,-2588.639814,0.0002003,2]
[400314649,1767355869323,-1000.0,0.0002005,2]
[400314650,1767355869335,-1000.0,0.00020053,2]
[400314651,1767355869347,-1000.0,0.00020071,2]
[400314652,1767355869358,-1000.0,0.00020071,2]
[400314653,1767355869369,-1000.0,0.00020071,2]
[400314654,1767355869380,-1000.0,0.00020073,2]
[400314655,1767355869391,-1000.0,0.00020079,2]
[400314656,1767355869411,-1000.0,0.00020083,2]
[400314657,1767355869428,-1000.0,0.00020084,2]
[400314658,1767355869439,-168.91070358,0.00020087,2]
[400314659,1767355869451,-150.0,0.00020091,2]
[400314660,1767355869462,-2000.0,0.00020099,2]
[400314661,1767355869473,-2000.0,0.00020099,2]
[400314662,1767355869484,-1004.56431335,0.000201,2]
[400314663,1767355869495,-1000.0,0.00020106,2]
[400314664,1767355869507,-1000.0,0.00020116,2]
[400314665,1767355869519,-215.0738,0.00020118,2]
[400314666,1767355869531,-500.0,0.0002017,2]
[400314667,1767355869543,-601.83,0.00020187,2]
[400314668,1767355869554,-796.47683394,0.000202,2]
[400314669,1767355869565,-796.47683394,0.000202,2]
[400314670,1767355869576,-500.0,0.000202,2]
[400314671,1767355869587,-618.03155836,0.00020274,2]
[400314672,1767355869599,-350.0,0.00020274,2]
[400314673,1767355869611,-260.73690508,0.00020274,2]
[400314674,1767355869622,-6171.37558444,0.0002037,2]
[400314675,1767355869633,-5000.0,0.0002037,2]
[400314676,1767355869644,-5000.0,0.0002037,2]
[400314677,1767355869656,-5000.0,0.0002037,2]
[400314678,1767355869667,-5000.0,0.0002037,2]
[400314679,1767355869679,-373.07297731,0.00020535,2]
[400314680,1767355869691,-192.71,0.00020548,2]
[400314681,1767355869956,-21474.3,0.00020548,2]
[400314682,1767355869966,-785.7,0.00020665,2]
[400314683,1767355869975,-22607.81236008,0.000207,2]
[400314684,1767355869985,-1000.0,0.00020795,2]
[400314685,1767355869995,-450.0,0.00020822,2]
[400314686,1767355870007,-154.38,0.00020901,2]
[400314687,1767355870016,-196.49542639,0.00021,2]
[400314688,1767355870025,-5000.0,0.00021,2]
[400314689,1767355870035,-20000.0,0.00021,2]
[400314690,1767355870046,-1190.56838879,0.00021,2]
[400314691,1767355870055,-400.05,0.00021,7]
[400314692,1767355870064,-217.2170396,0.00021,7]
[400314693,1767355870074,-350.0,0.00021,2]
[400314694,1767355870083,-12485.73,0.00021068,2]
[400314695,1767355870093,-169.89011095,0.0002111,2]
[400314696,1767355870101,-6363.95,0.0002137,2]
[400314697,1767355870111,-550.0,0.0002137,2]
[400314698,1767355870121,-57416.83525594,0.000215,2]
[400314699,1767355870130,-221.63273613,0.000215,2]
[400314700,1767355870140,-1021.8,0.00021586,2]
[400314701,1767355870149,-465.0,0.00021606,2]
[400314702,1767355870158,-1000.0,0.00021648,2]
[400314703,1767355870167,-5265.12558388,0.0002171,2]
[400314704,1767355870175,-5000.0,0.0002171,2]
[400314705,1767355870184,-5000.0,0.0002171,2]
[400314706,1767355870193,-5000.0,0.0002171,2]
[400314707,1767355870202,-5000.0,0.0002171,2]
[400314708,1767355870211,-465.0,0.00021828,2]
[400314709,1767355870220,-151.86245973,0.00021893,2]
[400314710,1767355870229,-386.87667747,0.00021904,2]
[400314711,1767355870237,-2433.0,0.00021916,2]
[400314712,1767355870247,-565.0,0.00021916,2]
[400314713,1767355870256,-6539.0,0.00021916,2]
[400314714,1767355870264,-500.0,0.00021917,2]
[400314715,1767355870274,-500.0,0.00021917,2]
[400314716,1767355870284,-500.0,0.00021917,2]
[400314717,1767355870292,-500.0,0.00021917,2]
[400314718,1767355870301,-500.0,0.00021917,2]
[400314719,1767355870310,-353.01,0.00021917,2]
[400314720,1767355870319,-353.01,0.00021917,2]
[400314721,1767355870328,-353.01,0.00021917,2]
[400314722,1767355870337,-353.01,0.00021917,2]
[400314723,1767355870346,-353.01,0.00021917,2]
[400314724,1767355870355,-353.01,0.00021917,2]
[400314725,1767355870363,-353.01,0.00021917,2]
[400314726,1767355870372,-353.01,0.00021917,2]
[400314727,1767355870381,-353.01,0.00021917,2]
[400314728,1767355870390,-353.01,0.00021917,2]
[400314729,1767355870399,-353.01,0.00021917,2]
[400314730,1767355870408,-353.01,0.00021917,2]
[400314731,1767355870417,-353.01,0.00021917,2]
[400314732,1767355870426,-353.01,0.00021917,2]
[400314733,1767355870435,-353.01,0.00021917,2]
[400314734,1767355870444,-353.01,0.00021917,2]
[400314735,1767355870453,-353.01,0.00021917,2]
[400314736,1767355870462,-353.01,0.00021917,2]
[400314737,1767355870471,-353.01,0.00021917,2]
[400314738,1767355870480,-353.01,0.00021917,2]
[400314739,1767355870492,-353.01,0.00021917,2]
[400314740,1767355870501,-353.01,0.00021917,2]
[400314741,1767355870509,-353.01,0.00021917,2]
[400314742,1767355870518,-353.18711206,0.00021917,2]
[400314743,1767355870528,-5000.0,0.00021918,2]
[400314744,1767355870538,-151.0,0.00021918,2]
[400314745,1767355870547,-248.858468,0.00021918,2]
[400314746,1767355870556,-3006.04,0.00021918,2]
[400314747,1767355870565,-297.144959,0.00021918,2]
[400314748,1767355870574,-297.144959,0.00021918,2]
[400314749,1767355870584,-297.144959,0.00021918,2]
[400314750,1767355870594,-297.144959,0.00021918,2]
[400314751,1767355870603,-297.144959,0.00021918,2]
[400314752,1767355870612,-297.144959,0.00021918,2]
[400314753,1767355870622,-297.144959,0.00021918,2]
[400314754,1767355870631,-297.144959,0.00021918,2]
[400314755,1767355870640,-297.144959,0.00021918,2]
[400314756,1767355870649,-297.144959,0.00021918,2]
[400314757,1767355870658,-297.144959,0.00021918,2]
[400314758,1767355870668,-297.144959,0.00021918,2]
[400314759,1767355870677,-297.144959,0.00021918,2]
[400314760,1767355870687,-297.144959,0.00021918,2]
[400314761,1767355870696,-297.144959,0.00021918,2]
[400314762,1767355870705,-297.144959,0.00021918,2]
[400314763,1767355870714,-297.144959,0.00021918,2]
[400314764,1767355870724,-297.144959,0.00021918,2]
[400314765,1767355870734,-297.144959,0.00021918,2]
[400314766,1767355870743,-297.144958,0.00021918,2]
[400314767,1767355870752,-216.87894895,0.00021918,2]
[400314768,1767355870762,-1167.0,0.00021918,2]
[400314769,1767355870771,-164.0,0.00021918,2]
[400314770,1767355870782,-174.93413296,0.00021918,2]
[400314771,1767355870792,-154.0,0.00021918,2]
[400314772,1767355870802,-164.0,0.00021918,2]
[400314773,1767355870811,-154.0,0.00021918,2]
[400314774,1767355870820,-164.0,0.00021918,2]
[400314775,1767355870829,-154.0,0.00021918,2]
[400314776,1767355870839,-154.0,0.00021918,2]
[400314777,1767355870849,-154.0,0.00021918,2]
[400314778,1767355870858,-228.89793378,0.00021918,2]
[400314779,1767355870868,-154.0,0.00021918,2]
[400314780,1767355870877,-154.0,0.00021918,2]
[400314781,1767355870887,-154.0,0.00021918,2]
[400314782,1767355870896,-5110.51,0.0002192,2]
[400314783,1767355870906,-5110.51,0.0002192,2]
[400314784,1767355870915,-5110.51,0.0002192,2]
[400314785,1767355870924,-5110.51,0.0002192,2]
[400314786,1767355870933,-5110.51,0.0002192,2]
[400314787,1767355870942,-300.0,0.00021999,2]
[400314788,1767355870951,-4167.88173542,0.00022,2]
[400314789,1767355870960,-163.53,0.00022,2]
[400314790,1767355870969,-795.66025042,0.00022,7]
[400314791,1767355870979,-368469.57265691,0.00022,4]
[400314792,1767355870988,-5000.0,0.00022,2]
[400314793,1767355870998,-433.63,0.00022,7]
[400314794,1767355871010,-7584.79179698,0.00022,15]
[400314795,1767355871019,-163.37,0.00022,2]
[400314796,1767355871029,-160841.43,0.00022,7]
[400314797,1767355871038,-172.36,0.00022,2]
[400314798,1767355871049,-465.0,0.00022051,2]
[400314799,1767355871059,-613.0,0.0002206,2]
[400314800,1767355871069,-493.40164522,0.000221,2]
[400314801,1767355871079,-239.74859019,0.0002211,2]
[400314802,1767355871089,-1138.98739744,0.00022206,5]
[400314803,1767355871098,-1085.5415996,0.00022206,5]
[400314804,1767355871107,-1135.10422051,0.00022206,5]
[400314805,1767355871116,-1082.21531832,0.00022206,5]
[400314806,1767355871126,-1030.39848069,0.00022206,5]
[400314807,1767355871136,-1081.86403133,0.00022206,5]
[400314808,1767355871145,-1032.65804999,0.00022206,5]
[400314809,1767355871154,-1042.95870188,0.00022206,5]
[400314810,1767355871163,-1034.07145002,0.00022206,5]
[400314811,1767355871172,-1041.12899215,0.00022206,5]
[400314812,1767355871182,-1082.75822061,0.00022206,5]
[400314813,1767355871191,-1123.93350408,0.00022206,5]
[400314814,1767355871200,-1092.68830909,0.00022206,5]
[400314815,1767355871209,-1142.00257357,0.00022206,5]
[400314816,1767355871220,-1149.35731201,0.00022206,5]
[400314817,1767355871230,-1003.74521432,0.00022206,5]
[400314818,1767355871239,-1144.29179061,0.00022206,5]
[400314819,1767355871249,-1123.51543593,0.00022206,5]
[400314820,1767355871259,-1043.06327218,0.00022206,5]
[400314821,1767355871269,-1145.22116085,0.00022206,5]
[400314822,1767355871279,-1041.89840559,0.00022206,5]
[400314823,1767355871289,-1217.80123484,0.00022206,5]
[400314824,1767355871298,-465.0,0.00022274,2]
[400314825,1767355871308,-465.0,0.00022497,2]
[400314826,1767355871317,-35420.49947508,0.000225,2]
[400314827,1767355871325,-151.0,0.000226,2]
[400314828,1767355871335,-508.11,0.000226,14]
[400314829,1767355871344,-522.02592135,0.0002271,2]
[400314830,1767355871353,-465.0,0.00022719,2]
[400314831,1767355871363,-223.0315306,0.00022857,2]
[400314832,1767355871372,-465.0,0.00022942,2]
[400314833,1767355871381,-1749.0106356,0.00023,2]
[400314834,1767355871392,-1005.55588498,0.00023,2]
[400314835,1767355871401,-634.02037806,0.00023,7]
[400314836,1767355871412,-5000.0,0.00023,2]
[400314837,1767355871421,-400.0,0.00023,2]
[400314838,1767355871430,-247.0,0.00023,7]
[400314839,1767355871440,-168.0,0.00023,7]
[400314840,1767355871449,-2580.48216182,0.000231,2]
[400314841,1767355871459,-154.38,0.00023126,2]
[400314842,1767355871468,-157.16740029,0.000232,2]
[400314843,1767355871478,-160841.43,0.000232,7]
[400314844,1767355871487,-401.19111454,0.00023273,2]
[400314845,1767355871497,-247.0,0.00023288,7]
[400314846,1767355871507,-200.0,0.000235,2]
[400314847,1767355871516,-433.63,0.000235,7]
[400314848,1767355871526,-1222.64,0.00023562,2]
[400314849,1767355871535,-1222.64,0.00023562,2]
[400314850,1767355871544,-158.05,0.0002358,2]
[400314851,1767355871554,-154.38,0.00023755,2]
[400314852,1767355871563,-1000.0,0.000238,2]
[400314853,1767355871572,-1232.27983782,0.00024,2]
[400314854,1767355871581,-5000.0,0.00024,2]
[400314855,1767355871590,-16659.78814341,0.00024,2]
[400314856,1767355871600,-1019.02110239,0.00024,2]
[400314857,1767355871609,-3600.0,0.00024,2]
[400314858,1767355871618,-16175.82886396,0.00024,2]
[400314859,1767355871627,-878.51595379,0.00024,30]
[400314860,1767355871637,-247.0,0.00024164,7]
[400314861,1767355871646,-168.0,0.00024164,7]
[400314862,1767355871655,-420.95256288,0.0002421,2]
[400314863,1767355871664,-3687.48420221,0.0002421,2]
[400314864,1767355871674,-160841.43,0.000246,7]
[400314865,1767355871683,-151.86245975,0.00024629,2]
[400314866,1767355871693,-416.03518578,0.00024642,2]
[400314867,1767355871703,-596.18395773,0.0002465,2]
[400314868,1767355871712,-172.36,0.00024653,2]
[400314869,1767355871721,-187.78006525,0.00024658,2]
[400314870,1767355871730,-157.0,0.00024658,2]
[400314871,1767355871740,-157.0,0.00024658,2]
[400314872,1767355871750,-157.0,0.00024658,2]
[400314873,1767355871760,-157.0,0.00024658,2]
[400314874,1767355871769,-157.0,0.00024658,2]
[400314875,1767355871781,-157.0,0.00024658,2]
[400314876,1767355871790,-163.89673848,0.00024658,2]
[400314877,1767355871799,-1000.0,0.00024658,2]
[400314878,1767355871808,-151.0,0.00024658,2]
[400314879,1767355871818,-155.121776,0.00024658,2]
[400314880,1767355871827,-1558.61,0.00024658,2]
[400314881,1767355871836,-486.36474311,0.00024658,5]
[400314882,1767355871846,-612596.721645,0.000248,3]
[400314883,1767355871855,-515886.150797,0.000249,3]
[400314884,1767355871864,-2433.0,0.00024916,2]
[400314885,1767355871874,-1109.15165533,0.00025,2]
[400314886,1767355871883,-206.6460661,0.00025,2]
[400314887,1767355871891,-1777.31012629,0.00025,2]
[400314888,1767355871901,-359.21427485,0.00025,2]
[400314889,1767355871910,-360.0,0.00025,2]
[400314890,1767355871919,-608.37035353,0.00025,2]
[400314891,1767355871929,-3031.56511768,0.00025,2]
[400314892,1767355871938,-7096.17719655,0.00025,2]
[400314893,1767355871947,-1060.01928523,0.00025,2]
[400314894,1767355871956,-166.60283035,0.00025,2]
[400314895,1767355871966,-151.0,0.00025,2]
[400314896,1767355871975,-170.11722745,0.00025,5]
[400314897,1767355871984,-11204.5378149,0.00025,15]
[400314898,1767355871994,-7332.39675803,0.00025,5]
[400314899,1767355872006,-1312.41751289,0.00025,4]
[400314900,1767355872015,-27195.06034813,0.00025,7]
[400314901,1767355872025,-208.42,0.00025,2]
[400314902,1767355872034,-150.0,0.00025,2]
[400314903,1767355872045,-931.11971029,0.00025,3]
[400314904,1767355872054,-200.0,0.00025,2]
[400314905,1767355872064,-450.0,0.00025,2]
[400314906,1767355872073,-150.0,0.00025,2]
[400314907,1767355872083,-150.0,0.00025,2]
[400314908,1767355872092,-150.0,0.00025,2]
[400314909,1767355872101,-1000.0,0.00025,7]
[400314910,1767355872110,-150.0,0.00025,2]
[400314911,1767355872120,-10553.0,0.00025,2]
[400314912,1767355872129,-150.0,0.00025,2]
[400314913,1767355872139,-150.0,0.00025,2]
[400314914,1767355872148,-150.0,0.00025,2]
[400314915,1767355872158,-152.0,0.00025229,3]
[400314916,1767355872168,-433.63,0.000253,7]
[400314917,1767355872178,-249.0,0.00025373,7]
[400314918,1767355872187,-231.28369723,0.00025596,2]
[400314919,1767355872197,-152.0,0.00025633,4]
[400314920,1767355872206,-5530.0,0.000257,3]
[400314921,1767355872215,-160841.43,0.000258,7]
[400314922,1767355872225,-262.59211813,0.00025868,2]
[400314923,1767355872234,-598.23867791,0.0002599,2]
[400314924,1767355872243,-4503.25121598,0.00026,2]
[400314925,1767355872252,-215.63897776,0.00026,2]
[400314926,1767355872262,-162.31499201,0.00026,2]
[400314927,1767355872272,-5000.0,0.00026,2]
[400314928,1767355872282,-150.0,0.00026,2]
[400314929,1767355872291,-431.42848765,0.00026011,2]
[400314930,1767355872301,-194.72792766,0.00026027,2]
[400314931,1767355872311,-152.0,0.00026036,5]
[400314932,1767355872320,-3335.832098,0.00026166,2]
[400314933,1767355872329,-5530.0,0.000263,5]
[400314934,1767355872339,-27368.07977529,0.000264,2]
[400314935,1767355872348,-152.0,0.00026439,6]
[400314936,1767355872358,-1524.34,0.000266,14]
[400314937,1767355872367,-601.83,0.00026676,2]
[400314938,1767355872377,-152.0,0.00026842,7]
[400314939,1767355872386,-262.59211813,0.00026957,56]
[400314940,1767355872395,-250.0,0.00027,2]
[400314941,1767355872404,-1029.93887181,0.00027,2]
[400314942,1767355872414,-530.0,0.00027,2]
[400314943,1767355872423,-200.0,0.00027,2]
[400314944,1767355872433,-500.0,0.00027,2]
[400314945,1767355872442,-2000.0,0.00027,2]
[400314946,1767355872452,-2432.846355,0.0002701,2]